[Event "*** Titled Tuesday Blitz"]
[Site "Chess.com"]
[Date "2020.05.19"]
[Round "10"]
[White "Zubrrr"]
[Black "SanchezKelvin"]
[Result "1-0"]
[WhiteElo "2653"]
[BlackElo "2474"]
[TimeControl "180+1"]
[EndTime "13:56:21 PDT"]
[Termination "Zubrrr won on time"]

1. e4 {[%clk 0:03:00.9]} 1... c5 {[%clk 0:02:59.7]} 2. d4 {[%clk 0:03:00.3]}
2... cxd4 {[%clk 0:02:59.4]} 3. c3 {[%clk 0:03:00.8]} 3... dxc3 {[%clk
0:03:00.3]} 4. Nxc3 {[%clk 0:03:01.7]} 4... e6 {[%clk 0:02:55.6]} 5. Nf3 {[%clk
0:02:55]} 5... a6 {[%clk 0:02:55.2]} 6. Bc4 {[%clk 0:02:35.2]} 6... b5 {[%clk
0:02:42.9]} 7. Bb3 {[%clk 0:02:35.4]} 7... Bb7 {[%clk 0:02:42.6]} 8. O-O {[%clk
0:02:17.1]} 8... d6 {[%clk 0:02:30.8]} 9. Bf4 {[%clk 0:02:12.8]} 9... Nc6 {[%clk
0:02:16]} 10. Qe2 {[%clk 0:01:57.4]} 10... Qb6 {[%clk 0:02:10.3]} 11. Rfd1
{[%clk 0:01:48.8]} 11... Rd8 {[%clk 0:02:09.5]} 12. Nd5 {[%clk 0:01:24.7]} 12...
exd5 {[%clk 0:01:52.3]} 13. exd5+ {[%clk 0:01:25.6]} 13... Nce7 {[%clk
0:01:39.7]} 14. Re1 {[%clk 0:01:10.9]} 14... Rd7 {[%clk 0:01:26.1]} 15. a4
{[%clk 0:01:07.5]} 15... h6 {[%clk 0:01:16.2]} 16. Be3 {[%clk 0:01:06.1]} 16...
Qd8 {[%clk 0:01:15.3]} 17. axb5 {[%clk 0:01:05.3]} 17... axb5 {[%clk 0:01:14.3]}
18. Qxb5 {[%clk 0:01:05.1]} 18... Nf6 {[%clk 0:01:11.9]} 19. Bb6 {[%clk
0:01:02.7]} 19... Qb8 {[%clk 0:01:10.5]} 20. Nd4 {[%clk 0:00:46.4]} 20... Bxd5
{[%clk 0:01:01.4]} 21. Nc6 {[%clk 0:00:19.1]} 21... Bxc6 {[%clk 0:00:02.7]} 22.
Qxc6 {[%clk 0:00:18.8]} 22... Qb7 {[%clk 0:00:01.1]} 23. Ra8+ {[%clk 0:00:18.5]}
1-0

[Event "*** Titled Tuesday Blitz"]
[Site "Chess.com"]
[Date "2020.05.19"]
[Round "10"]
[White "Machidon"]
[Black "Doukis"]
[Result "1-0"]
[WhiteElo "2540"]
[BlackElo "2390"]
[TimeControl "180+1"]
[EndTime "13:56:22 PDT"]
[Termination "Machidon won by resignation"]

1. d4 {[%clk 0:03:00.9]} 1... d5 {[%clk 0:02:58.9]} 2. Nf3 {[%clk 0:03:00.8]}
2... c5 {[%clk 0:02:57.5]} 3. e3 {[%clk 0:02:59.9]} 3... Nf6 {[%clk 0:02:55.7]}
4. Bd3 {[%clk 0:02:58.2]} 4... Nc6 {[%clk 0:02:53.9]} 5. h3 {[%clk 0:02:53.6]}
5... g6 {[%clk 0:02:33.5]} 6. O-O {[%clk 0:02:49.6]} 6... Bg7 {[%clk 0:02:33.6]}
7. Nbd2 {[%clk 0:02:26.5]} 7... O-O {[%clk 0:02:27.8]} 8. dxc5 {[%clk
0:02:21.8]} 8... a5 {[%clk 0:02:25.9]} 9. e4 {[%clk 0:02:12.9]} 9... Nb4 {[%clk
0:01:46.6]} 10. e5 {[%clk 0:02:06.6]} 10... Nd7 {[%clk 0:01:45.7]} 11. Re1
{[%clk 0:01:59.3]} 11... Nxc5 {[%clk 0:01:44.5]} 12. Bf1 {[%clk 0:01:56.8]}
12... Bf5 {[%clk 0:01:38.8]} 13. Nd4 {[%clk 0:01:56.6]} 13... Bd7 {[%clk
0:01:31.7]} 14. N2b3 {[%clk 0:01:53.5]} 14... Ne4 {[%clk 0:01:21.5]} 15. c3
{[%clk 0:01:49.1]} 15... a4 {[%clk 0:01:15.7]} 16. Nd2 {[%clk 0:01:44.8]} 16...
Nc6 {[%clk 0:01:09]} 17. Nxe4 {[%clk 0:01:43.4]} 17... dxe4 {[%clk 0:01:07.4]}
18. e6 {[%clk 0:01:35.2]} 18... Bxe6 {[%clk 0:00:50.2]} 19. Nxe6 {[%clk
0:01:34.9]} 19... Qxd1 {[%clk 0:00:50.6]} 20. Rxd1 {[%clk 0:01:34.4]} 20... fxe6
{[%clk 0:00:51.1]} 21. a3 {[%clk 0:01:31.8]} 21... Na5 {[%clk 0:00:49]} 22. Be3
{[%clk 0:01:25.9]} 22... Nb3 {[%clk 0:00:46.6]} 23. Rab1 {[%clk 0:01:25.5]}
23... Rac8 {[%clk 0:00:41.6]} 24. Bb5 {[%clk 0:01:23.8]} 24... Ra8 {[%clk
0:00:37.1]} 25. Rd7 {[%clk 0:01:20.8]} 25... Bf6 {[%clk 0:00:32.3]} 26. Rxb7
{[%clk 0:01:15.5]} 26... Rfd8 {[%clk 0:00:31.3]} 27. Bc4 {[%clk 0:01:07.6]}
27... Kf7 {[%clk 0:00:29.6]} 28. Bxb3 {[%clk 0:01:05.1]} 28... axb3 {[%clk
0:00:29.1]} 29. Rxb3 {[%clk 0:01:06]} 29... Rdb8 {[%clk 0:00:20.8]} 30. Rb4
{[%clk 0:01:02.9]} 30... Ke8 {[%clk 0:00:14]} 31. Kf1 {[%clk 0:01:02.5]} 31...
Kd7 {[%clk 0:00:13.9]} 32. Ke2 {[%clk 0:01:03]} 32... Kc6 {[%clk 0:00:14.5]} 33.
Kd2 {[%clk 0:01:01.7]} 33... Rd8+ {[%clk 0:00:13.9]} 34. Kc2 {[%clk 0:01:01.6]}
34... Rab8 {[%clk 0:00:12.6]} 35. Rd1 {[%clk 0:01:00.7]} 35... Rxd1 {[%clk
0:00:11.8]} 36. Kxd1 {[%clk 0:01:01.6]} 36... Rd8+ {[%clk 0:00:12.2]} 37. Kc2
{[%clk 0:01:01.3]} 37... Be5 {[%clk 0:00:11.8]} 38. Rxe4 {[%clk 0:01:01.1]}
38... Rd5 {[%clk 0:00:10.4]} 39. b4 {[%clk 0:00:56.5]} 39... Kd7 {[%clk
0:00:09.1]} 40. c4 {[%clk 0:00:54.6]} 1-0

[Event "*** Titled Tuesday Blitz"]
[Site "Chess.com"]
[Date "2020.05.19"]
[Round "10"]
[White "UCantHandleDenker"]
[Black "Quattroporte300"]
[Result "1-0"]
[WhiteElo "2547"]
[BlackElo "2317"]
[TimeControl "180+1"]
[EndTime "13:56:22 PDT"]
[Termination "UCantHandleDenker won on time"]

1. Nf3 {[%clk 0:02:58.5]} 1... Nf6 {[%clk 0:02:59.3]} 2. g3 {[%clk 0:02:58]}
2... e6 {[%clk 0:02:59.2]} 3. Bg2 {[%clk 0:02:58.2]} 3... d5 {[%clk 0:02:59.5]}
4. O-O {[%clk 0:02:59.1]} 4... Be7 {[%clk 0:02:59.2]} 5. d3 {[%clk 0:03:00]}
5... O-O {[%clk 0:02:59]} 6. Nbd2 {[%clk 0:03:00.9]} 6... c5 {[%clk 0:02:58.9]}
7. e4 {[%clk 0:03:01.8]} 7... Nc6 {[%clk 0:02:56.8]} 8. Re1 {[%clk 0:03:02]}
8... Qc7 {[%clk 0:02:54.7]} 9. Qe2 {[%clk 0:02:59.6]} 9... Re8 {[%clk
0:02:49.7]} 10. e5 {[%clk 0:02:59.4]} 10... Nd7 {[%clk 0:02:40.7]} 11. Nf1
{[%clk 0:03:00.3]} 11... b5 {[%clk 0:02:21.6]} 12. Bf4 {[%clk 0:02:59.9]} 12...
b4 {[%clk 0:02:15.8]} 13. h4 {[%clk 0:02:59.1]} 13... a5 {[%clk 0:02:11.4]} 14.
h5 {[%clk 0:02:58.3]} 14... Ba6 {[%clk 0:02:05.9]} 15. Qd2 {[%clk 0:02:54.7]}
15... Rac8 {[%clk 0:01:39.9]} 16. h6 {[%clk 0:02:54.2]} 16... g6 {[%clk
0:01:37.7]} 17. N1h2 {[%clk 0:02:53.9]} 17... Nd4 {[%clk 0:01:31.5]} 18. Rac1
{[%clk 0:02:46.2]} 18... Nxf3+ {[%clk 0:01:18.6]} 19. Nxf3 {[%clk 0:02:45.5]}
19... c4 {[%clk 0:01:17.8]} 20. Bg5 {[%clk 0:02:45.2]} 20... Bxg5 {[%clk
0:01:12]} 21. Qxg5 {[%clk 0:02:42.2]} 21... Qd8 {[%clk 0:01:03.9]} 22. Qe3
{[%clk 0:02:26.9]} 22... Qb6 {[%clk 0:00:59.7]} 23. d4 {[%clk 0:02:25.6]} 23...
a4 {[%clk 0:00:55.6]} 24. Qf4 {[%clk 0:02:17.2]} 24... c3 {[%clk 0:00:41.6]} 25.
b3 {[%clk 0:02:03.8]} 25... axb3 {[%clk 0:00:39.2]} 26. axb3 {[%clk 0:02:02.4]}
26... Qd8 {[%clk 0:00:28.6]} 27. Ra1 {[%clk 0:02:00.4]} 27... Ra8 {[%clk
0:00:27.3]} 28. Ng5 {[%clk 0:01:57.6]} 28... Rf8 {[%clk 0:00:17.9]} 29. Ra4
{[%clk 0:01:55.8]} 29... Qe7 {[%clk 0:00:11.2]} 30. Rea1 {[%clk 0:01:53.9]}
30... Bb7 {[%clk 0:00:09.1]} 31. Bf1 {[%clk 0:01:51.9]} 31... Rxa4 {[%clk
0:00:07.5]} 32. Rxa4 {[%clk 0:01:51.2]} 32... Nb6 {[%clk 0:00:06.8]} 33. Ra7
{[%clk 0:01:48.8]} 33... Rb8 {[%clk 0:00:03.4]} 34. Ba6 {[%clk 0:01:45.2]} 34...
Nc8 {[%clk 0:00:02.1]} 35. Rxb7 {[%clk 0:01:44.8]} 35... Rxb7 {[%clk 0:00:02.6]}
36. Bxb7 {[%clk 0:01:44.5]} 36... Qxb7 {[%clk 0:00:03.1]} 37. Qf6 {[%clk
0:01:43.4]} 37... Kf8 {[%clk 0:00:03.5]} 38. Qg7+ {[%clk 0:01:40.9]} 38... Ke8
{[%clk 0:00:02.9]} 39. Qg8+ {[%clk 0:01:40.9]} 39... Kd7 {[%clk 0:00:02.6]} 40.
Qxf7+ {[%clk 0:01:41.1]} 40... Kc6 {[%clk 0:00:03]} 41. Qxe6+ {[%clk 0:01:40.9]}
41... Kb5 {[%clk 0:00:02.8]} 42. Qe8+ {[%clk 0:01:37.2]} 42... Kb6 {[%clk
0:00:02.3]} 43. Qd8+ {[%clk 0:01:34.1]} 43... Kb5 {[%clk 0:00:02]} 44. Ne6
{[%clk 0:01:33.4]} 44... Qa7 {[%clk 0:00:01.3]} 45. Qxc8 {[%clk 0:01:30.8]}
45... Qa1+ {[%clk 0:00:01.2]} 46. Kg2 {[%clk 0:01:30.4]} 1-0

[Event "*** Titled Tuesday Blitz"]
[Site "Chess.com"]
[Date "2020.05.19"]
[Round "10"]
[White "TigranMukhutdinov"]
[Black "MariaFominykh"]
[Result "1-0"]
[WhiteElo "2477"]
[BlackElo "2350"]
[TimeControl "180+1"]
[EndTime "13:56:25 PDT"]
[Termination "TigranMukhutdinov won on time"]

1. Nf3 {[%clk 0:03:00.9]} 1... Nf6 {[%clk 0:02:59.3]} 2. g3 {[%clk 0:03:01.2]}
2... g6 {[%clk 0:02:59.2]} 3. b3 {[%clk 0:03:01.3]} 3... Bg7 {[%clk 0:02:59.4]}
4. Bb2 {[%clk 0:03:01.8]} 4... O-O {[%clk 0:02:59.3]} 5. Bg2 {[%clk 0:03:01.8]}
5... d6 {[%clk 0:02:58.5]} 6. d4 {[%clk 0:03:01.4]} 6... a5 {[%clk 0:02:56]} 7.
O-O {[%clk 0:03:01.2]} 7... a4 {[%clk 0:02:55.5]} 8. c4 {[%clk 0:03:00.5]} 8...
Nc6 {[%clk 0:02:48.6]} 9. bxa4 {[%clk 0:02:55.4]} 9... Bd7 {[%clk 0:02:32.7]}
10. Nc3 {[%clk 0:02:54.7]} 10... Na5 {[%clk 0:02:29.4]} 11. Qd3 {[%clk
0:02:49.7]} 11... Bf5 {[%clk 0:02:19.3]} 12. e4 {[%clk 0:02:47.8]} 12... Bg4
{[%clk 0:02:14.3]} 13. Nd2 {[%clk 0:02:44.9]} 13... e5 {[%clk 0:02:08.1]} 14. d5
{[%clk 0:02:39]} 14... Nd7 {[%clk 0:02:01.1]} 15. Nb3 {[%clk 0:02:37.3]} 15...
Nb6 {[%clk 0:01:33.4]} 16. Nxa5 {[%clk 0:02:28.6]} 16... Rxa5 {[%clk 0:01:32.6]}
17. Ba3 {[%clk 0:02:15.8]} 17... Nxa4 {[%clk 0:01:23.3]} 18. Bb4 {[%clk
0:02:14.5]} 18... Ra6 {[%clk 0:01:07.7]} 19. Nxa4 {[%clk 0:02:10.3]} 19... Rxa4
{[%clk 0:01:07.5]} 20. Qb3 {[%clk 0:02:11.2]} 20... Qa8 {[%clk 0:01:04.6]} 21.
c5 {[%clk 0:02:10.1]} 21... dxc5 {[%clk 0:00:42.1]} 22. Bxc5 {[%clk 0:02:09.2]}
22... Rd8 {[%clk 0:00:39.8]} 23. Rfc1 {[%clk 0:02:04.6]} 23... b6 {[%clk
0:00:22.7]} 24. Be3 {[%clk 0:01:57.7]} 24... Ra7 {[%clk 0:00:19.5]} 25. h3
{[%clk 0:01:56]} 25... Bd7 {[%clk 0:00:18.3]} 26. a3 {[%clk 0:01:34]} 26... Bf8
{[%clk 0:00:17.6]} 27. Rc3 {[%clk 0:01:25.7]} 27... Ba4 {[%clk 0:00:16.4]} 28.
Qb2 {[%clk 0:01:25.5]} 28... Bd7 {[%clk 0:00:15.1]} 29. h4 {[%clk 0:01:21.8]}
29... Bd6 {[%clk 0:00:13.7]} 30. Bf1 {[%clk 0:01:19.8]} 30... Ra4 {[%clk
0:00:12.4]} 31. f3 {[%clk 0:01:18.7]} 31... f5 {[%clk 0:00:12.2]} 32. Bd3 {[%clk
0:01:13.4]} 32... f4 {[%clk 0:00:11]} 33. Bf2 {[%clk 0:01:07]} 33... fxg3 {[%clk
0:00:10.7]} 34. Bxg3 {[%clk 0:01:07.9]} 34... Re8 {[%clk 0:00:10]} 35. Bb5
{[%clk 0:00:58.8]} 35... Bc5+ {[%clk 0:00:08.9]} 36. Rxc5 {[%clk 0:00:55.4]}
36... bxc5 {[%clk 0:00:08.3]} 37. Bxd7 {[%clk 0:00:53.9]} 37... Rb8 {[%clk
0:00:08.3]} 38. Qxe5 {[%clk 0:00:49.8]} 1-0

[Event "*** Titled Tuesday Blitz"]
[Site "Chess.com"]
[Date "2020.05.19"]
[Round "10"]
[White "SuperCheese"]
[Black "fabianvivasz"]
[Result "1-0"]
[WhiteElo "2545"]
[BlackElo "2312"]
[TimeControl "180+1"]
[EndTime "13:56:25 PDT"]
[Termination "SuperCheese won by checkmate"]

1. d4 {[%clk 0:03:00.9]} 1... Nf6 {[%clk 0:02:59.8]} 2. c4 {[%clk 0:03:01.4]}
2... g6 {[%clk 0:02:59.8]} 3. Nc3 {[%clk 0:03:01.9]} 3... d5 {[%clk 0:02:58.1]}
4. cxd5 {[%clk 0:03:01.6]} 4... Nxd5 {[%clk 0:02:59]} 5. e4 {[%clk 0:03:02]}
5... Nxc3 {[%clk 0:02:59.5]} 6. bxc3 {[%clk 0:03:02.9]} 6... Bg7 {[%clk
0:02:59.9]} 7. Nf3 {[%clk 0:03:03.1]} 7... c5 {[%clk 0:03:00.4]} 8. Be3 {[%clk
0:03:03.8]} 8... Qa5 {[%clk 0:02:58.2]} 9. Qd2 {[%clk 0:03:03.5]} 9... Nc6
{[%clk 0:02:56]} 10. Rb1 {[%clk 0:03:01.7]} 10... O-O {[%clk 0:02:44]} 11. Rb5
{[%clk 0:02:45]} 11... cxd4 {[%clk 0:02:44.1]} 12. Rxa5 {[%clk 0:02:23.2]} 12...
dxe3 {[%clk 0:02:43.2]} 13. Qxe3 {[%clk 0:02:10.2]} 13... Nxa5 {[%clk
0:02:43.5]} 14. Nd4 {[%clk 0:01:59.4]} 14... Bd7 {[%clk 0:02:18.3]} 15. Be2
{[%clk 0:01:53.9]} 15... Rac8 {[%clk 0:02:18.1]} 16. O-O {[%clk 0:01:53.4]}
16... Rc7 {[%clk 0:01:48.8]} 17. e5 {[%clk 0:01:51.3]} 17... Rfc8 {[%clk
0:01:46.3]} 18. e6 {[%clk 0:01:37.5]} 18... fxe6 {[%clk 0:01:37.5]} 19. Nxe6
{[%clk 0:01:25.2]} 19... Rxc3 {[%clk 0:01:35.8]} 20. Qe4 {[%clk 0:01:24.3]}
20... Bc6 {[%clk 0:01:23.9]} 21. Qb4 {[%clk 0:01:08.2]} 21... Rc2 {[%clk
0:01:13.3]} 22. Bg4 {[%clk 0:00:20.9]} 22... Bc3 {[%clk 0:00:30.7]} 23. Qxe7
{[%clk 0:00:17.7]} 23... Bd5 {[%clk 0:00:26.4]} 24. Ng5 {[%clk 0:00:16.4]} 24...
Bg7 {[%clk 0:00:19.6]} 25. Bxc8 {[%clk 0:00:14.1]} 25... Rxc8 {[%clk 0:00:20.5]}
26. Qd7 {[%clk 0:00:14.4]} 26... Rc5 {[%clk 0:00:15.2]} 27. Re1 {[%clk
0:00:10.4]} 27... Bc6 {[%clk 0:00:12.1]} 28. Re8+ {[%clk 0:00:09.8]} 28... Bf8
{[%clk 0:00:11.9]} 29. Qxh7# {[%clk 0:00:08.5]} 1-0

[Event "*** Titled Tuesday Blitz"]
[Site "Chess.com"]
[Date "2020.05.19"]
[Round "10"]
[White "mshuaau0"]
[Black "noblerone"]
[Result "1-0"]
[WhiteElo "2245"]
[BlackElo "2412"]
[TimeControl "180+1"]
[EndTime "13:56:25 PDT"]
[Termination "mshuaau0 won by resignation"]

1. e4 {[%clk 0:03:00.9]} 1... c5 {[%clk 0:03:00]} 2. Nf3 {[%clk 0:03:00.6]} 2...
e6 {[%clk 0:03:00]} 3. d4 {[%clk 0:02:58.4]} 3... cxd4 {[%clk 0:03:00.9]} 4.
Nxd4 {[%clk 0:02:57.7]} 4... Qb6 {[%clk 0:03:01.2]} 5. Be2 {[%clk 0:02:40.8]}
5... Bc5 {[%clk 0:02:55.7]} 6. c3 {[%clk 0:02:40.7]} 6... e5 {[%clk 0:02:53]} 7.
Nf5 {[%clk 0:02:37.9]} 7... Bxf2+ {[%clk 0:02:47.4]} 8. Kf1 {[%clk 0:02:38.3]}
8... d5 {[%clk 0:02:18.6]} 9. Nxg7+ {[%clk 0:02:16.4]} 9... Kf8 {[%clk
0:02:17.9]} 10. Bg4 {[%clk 0:01:32.9]} 10... Kxg7 {[%clk 0:01:26.9]} 11. Bxc8
{[%clk 0:01:31.1]} 11... Nf6 {[%clk 0:01:26.6]} 12. Bxb7 {[%clk 0:01:09.2]}
12... Qxb7 {[%clk 0:01:23.8]} 13. Kxf2 {[%clk 0:01:03.4]} 13... Nxe4+ {[%clk
0:01:23.7]} 14. Kf1 {[%clk 0:00:58]} 14... Qa6+ {[%clk 0:01:20.6]} 15. Qe2
{[%clk 0:00:54.3]} 15... Qxe2+ {[%clk 0:01:19.3]} 16. Kxe2 {[%clk 0:00:54.3]}
16... Nd7 {[%clk 0:01:12.6]} 17. Nd2 {[%clk 0:00:54.2]} 17... Nxd2 {[%clk
0:01:12]} 18. Bxd2 {[%clk 0:00:53.9]} 18... f5 {[%clk 0:01:09.9]} 19. g4 {[%clk
0:00:50.7]} 19... fxg4 {[%clk 0:01:01.6]} 20. Rhg1 {[%clk 0:00:49.9]} 20... h5
{[%clk 0:01:01.9]} 21. h3 {[%clk 0:00:49.5]} 21... Nf6 {[%clk 0:01:02.3]} 22.
hxg4 {[%clk 0:00:41.7]} 22... Nxg4 {[%clk 0:00:56.8]} 23. Bg5 {[%clk 0:00:30.8]}
23... Rhf8 {[%clk 0:00:51.1]} 24. Bh4 {[%clk 0:00:29.3]} 24... Rab8 {[%clk
0:00:47.4]} 25. b3 {[%clk 0:00:29.6]} 25... Rb7 {[%clk 0:00:45.8]} 26. Rad1
{[%clk 0:00:29.2]} 26... Rd7 {[%clk 0:00:45.8]} 27. Rd2 {[%clk 0:00:25.4]} 27...
Rf5 {[%clk 0:00:36.2]} 28. Rgd1 {[%clk 0:00:24.5]} 28... e4 {[%clk 0:00:30.8]}
29. c4 {[%clk 0:00:24.9]} 29... e3 {[%clk 0:00:22.2]} 30. Rxd5 {[%clk 0:00:24]}
30... Rdxd5 {[%clk 0:00:17.9]} 31. cxd5 {[%clk 0:00:23.5]} 31... Rxd5 {[%clk
0:00:18.5]} 32. Rxd5 {[%clk 0:00:22.6]} 32... Kf7 {[%clk 0:00:18.6]} 33. Rxh5
{[%clk 0:00:21.7]} 1-0

[Event "*** Titled Tuesday Blitz"]
[Site "Chess.com"]
[Date "2020.05.19"]
[Round "10"]
[White "Gerodot71"]
[Black "miruna_daria28"]
[Result "1-0"]
[WhiteElo "2399"]
[BlackElo "2273"]
[TimeControl "180+1"]
[EndTime "13:56:26 PDT"]
[Termination "Gerodot71 won by resignation"]

1. d4 {[%clk 0:03:00.9]} 1... f5 {[%clk 0:02:59.3]} 2. Bg5 {[%clk 0:02:59.3]}
2... g6 {[%clk 0:02:58.2]} 3. Nc3 {[%clk 0:02:58.1]} 3... Bg7 {[%clk 0:02:57.2]}
4. e4 {[%clk 0:02:57.5]} 4... fxe4 {[%clk 0:02:56.8]} 5. Nxe4 {[%clk 0:02:58.2]}
5... Nf6 {[%clk 0:02:56.9]} 6. Bxf6 {[%clk 0:02:56.3]} 6... exf6 {[%clk
0:02:56.5]} 7. Qd2 {[%clk 0:02:56.6]} 7... O-O {[%clk 0:02:56.1]} 8. O-O-O
{[%clk 0:02:56.6]} 8... f5 {[%clk 0:02:54.9]} 9. Nc3 {[%clk 0:02:56]} 9... d6
{[%clk 0:02:53.9]} 10. h4 {[%clk 0:02:55.9]} 10... h6 {[%clk 0:02:50.3]} 11.
Bc4+ {[%clk 0:02:50.7]} 11... Kh8 {[%clk 0:02:48.1]} 12. Nh3 {[%clk 0:02:50]}
12... Nc6 {[%clk 0:02:45]} 13. Nf4 {[%clk 0:02:48.2]} 13... Kh7 {[%clk
0:02:35.4]} 14. g4 {[%clk 0:02:40.1]} 14... Nxd4 {[%clk 0:02:21.8]} 15. h5
{[%clk 0:02:27.2]} 15... g5 {[%clk 0:02:19.7]} 16. Ng6 {[%clk 0:02:24.8]} 16...
Nf3 {[%clk 0:02:03]} 17. Nxf8+ {[%clk 0:02:01.4]} 17... Qxf8 {[%clk 0:02:02.4]}
18. Qe2 {[%clk 0:01:56.6]} 18... Ne5 {[%clk 0:01:59.8]} 19. Bd3 {[%clk
0:01:53.2]} 19... Nxd3+ {[%clk 0:01:58.9]} 20. Qxd3 {[%clk 0:01:51.5]} 20... Kh8
{[%clk 0:01:52.9]} 21. f3 {[%clk 0:01:35.3]} 21... Be6 {[%clk 0:01:45.5]} 22.
Rde1 {[%clk 0:01:33.7]} 22... Bg8 {[%clk 0:01:45]} 23. gxf5 {[%clk 0:01:30.9]}
23... Bh7 {[%clk 0:01:45.1]} 24. Nd5 {[%clk 0:01:23.9]} 24... Bxf5 {[%clk
0:01:42.8]} 25. Qb3 {[%clk 0:01:23.4]} 25... c6 {[%clk 0:01:06.7]} 26. Ne7
{[%clk 0:01:17.4]} 26... Bh7 {[%clk 0:00:52.4]} 27. Ng6+ {[%clk 0:00:59]} 27...
Bxg6 {[%clk 0:00:51.2]} 28. hxg6 {[%clk 0:00:59.5]} 28... Be5 {[%clk 0:00:50.1]}
29. Qxb7 {[%clk 0:00:49.6]} 29... Bg7 {[%clk 0:00:35]} 30. Rxh6+ {[%clk
0:00:47.7]} 30... Kg8 {[%clk 0:00:35.6]} 31. Qf7+ {[%clk 0:00:45.3]} 31... Qxf7
{[%clk 0:00:33.9]} 32. gxf7+ {[%clk 0:00:45.9]} 32... Kxf7 {[%clk 0:00:34.1]}
33. Rxd6 {[%clk 0:00:46.4]} 33... Rb8 {[%clk 0:00:33]} 34. Rd7+ {[%clk 0:00:44]}
34... Kg8 {[%clk 0:00:27.7]} 35. c3 {[%clk 0:00:43.5]} 35... a5 {[%clk
0:00:20.2]} 36. Rg1 {[%clk 0:00:42.3]} 36... Rb5 {[%clk 0:00:19.6]} 37. Re1
{[%clk 0:00:39.7]} 37... Rf5 {[%clk 0:00:18.5]} 38. Re8+ {[%clk 0:00:38]} 38...
Kh7 {[%clk 0:00:17.9]} 39. Ree7 {[%clk 0:00:37.7]} 1-0

[Event "*** Titled Tuesday Blitz"]
[Site "Chess.com"]
[Date "2020.05.19"]
[Round "10"]
[White "zaur-mammadov"]
[Black "giantslayer83"]
[Result "1-0"]
[WhiteElo "2570"]
[BlackElo "2664"]
[TimeControl "180+1"]
[EndTime "13:56:28 PDT"]
[Termination "zaur-mammadov won by resignation"]

1. e4 {[%clk 0:02:59.8]} 1... e5 {[%clk 0:02:59.6]} 2. Nf3 {[%clk 0:02:59.1]}
2... Nc6 {[%clk 0:02:59.7]} 3. Nc3 {[%clk 0:02:59]} 3... Nf6 {[%clk 0:02:59.2]}
4. Be2 {[%clk 0:02:59.2]} 4... Bb4 {[%clk 0:02:47.9]} 5. Nd5 {[%clk 0:02:57.1]}
5... Ba5 {[%clk 0:02:45.9]} 6. c3 {[%clk 0:02:56.6]} 6... d6 {[%clk 0:02:39.5]}
7. a4 {[%clk 0:02:53.9]} 7... Bb6 {[%clk 0:02:31.4]} 8. d3 {[%clk 0:02:50.5]}
8... h6 {[%clk 0:02:26.8]} 9. O-O {[%clk 0:02:49.6]} 9... O-O {[%clk 0:02:22]}
10. Nd2 {[%clk 0:02:48.3]} 10... a6 {[%clk 0:02:06.5]} 11. Nxb6 {[%clk
0:02:45.7]} 11... cxb6 {[%clk 0:02:07.4]} 12. Bf3 {[%clk 0:02:45.9]} 12... d5
{[%clk 0:02:05.1]} 13. exd5 {[%clk 0:02:45.6]} 13... Nxd5 {[%clk 0:02:06]} 14.
Re1 {[%clk 0:02:45.6]} 14... Re8 {[%clk 0:02:04.9]} 15. Nc4 {[%clk 0:02:45.2]}
15... Nf6 {[%clk 0:01:33.2]} 16. Be3 {[%clk 0:02:36.6]} 16... Bf5 {[%clk
0:01:30.8]} 17. Bxb6 {[%clk 0:02:26.3]} 17... Qxd3 {[%clk 0:01:25.1]} 18. Nd6
{[%clk 0:02:25.3]} 18... Re6 {[%clk 0:01:22.7]} 19. Nxb7 {[%clk 0:02:16.6]}
19... Qxd1 {[%clk 0:01:20.7]} 20. Raxd1 {[%clk 0:02:15.6]} 20... e4 {[%clk
0:01:08.6]} 21. Be2 {[%clk 0:02:14.2]} 21... Rb8 {[%clk 0:01:06.6]} 22. Bxa6
{[%clk 0:02:14.2]} 22... Ne5 {[%clk 0:00:55.4]} 23. a5 {[%clk 0:02:12.6]} 23...
Ned7 {[%clk 0:00:55.5]} 24. Bc7 {[%clk 0:01:58.9]} 24... Rc8 {[%clk 0:00:53.3]}
25. Bd6 {[%clk 0:01:46.9]} 25... Ne8 {[%clk 0:00:48.4]} 26. Bb5 {[%clk
0:01:41.2]} 26... Ne5 {[%clk 0:00:45]} 27. a6 {[%clk 0:01:31.1]} 27... Nd3
{[%clk 0:00:39.7]} 28. Bxd3 {[%clk 0:01:24.7]} 28... exd3 {[%clk 0:00:40.6]} 29.
Rxe6 {[%clk 0:01:15.7]} 29... fxe6 {[%clk 0:00:40.2]} 30. Be5 {[%clk 0:01:04]}
30... Rc6 {[%clk 0:00:26.9]} 31. a7 {[%clk 0:00:55.7]} 31... Ra6 {[%clk
0:00:25.5]} 32. Bb8 {[%clk 0:00:56.1]} 32... e5 {[%clk 0:00:18.4]} 33. Nc5
{[%clk 0:00:54]} 33... Ra2 {[%clk 0:00:17.6]} 34. f3 {[%clk 0:00:53.6]} 34... e4
{[%clk 0:00:14.5]} 35. fxe4 {[%clk 0:00:52.3]} 35... Bg4 {[%clk 0:00:14.8]} 36.
Rxd3 {[%clk 0:00:51.6]} 36... Nf6 {[%clk 0:00:14.9]} 37. h3 {[%clk 0:00:45.3]}
37... Be2 {[%clk 0:00:14.3]} 38. Rd4 {[%clk 0:00:40.9]} 38... Kh7 {[%clk
0:00:13.9]} 39. Ra4 {[%clk 0:00:40.1]} 1-0

[Event "*** Titled Tuesday Blitz"]
[Site "Chess.com"]
[Date "2020.05.19"]
[Round "10"]
[White "dolynachess"]
[Black "Klavdia_Nik"]
[Result "1-0"]
[WhiteElo "2346"]
[BlackElo "2035"]
[TimeControl "180+1"]
[EndTime "13:56:33 PDT"]
[Termination "dolynachess won by resignation"]

1. d4 {[%clk 0:03:00.9]} 1... Nf6 {[%clk 0:02:58.8]} 2. c4 {[%clk 0:03:01.2]}
2... c5 {[%clk 0:02:59]} 3. d5 {[%clk 0:02:55.6]} 3... b5 {[%clk 0:02:58.9]} 4.
cxb5 {[%clk 0:02:42.9]} 4... a6 {[%clk 0:02:58.5]} 5. bxa6 {[%clk 0:02:42]} 5...
Bxa6 {[%clk 0:02:58.8]} 6. Nc3 {[%clk 0:02:41]} 6... d6 {[%clk 0:02:57.7]} 7.
Nf3 {[%clk 0:02:41]} 7... g6 {[%clk 0:02:56.6]} 8. g3 {[%clk 0:02:39.9]} 8...
Bg7 {[%clk 0:02:56.9]} 9. e4 {[%clk 0:02:40.4]} 9... Bxf1 {[%clk 0:02:54.5]} 10.
Kxf1 {[%clk 0:02:41.3]} 10... O-O {[%clk 0:02:54.2]} 11. Kg2 {[%clk 0:02:41.4]}
11... Nbd7 {[%clk 0:02:51.7]} 12. a4 {[%clk 0:02:41.1]} 12... Qa5 {[%clk
0:02:48.4]} 13. Ra3 {[%clk 0:02:40.7]} 13... Rfb8 {[%clk 0:02:43.7]} 14. Qc2
{[%clk 0:02:40.2]} 14... Ng4 {[%clk 0:02:39.2]} 15. Bg5 {[%clk 0:02:27.5]} 15...
Kf8 {[%clk 0:02:35.4]} 16. Bd2 {[%clk 0:02:15.8]} 16... Nge5 {[%clk 0:02:25.8]}
17. Nb5 {[%clk 0:02:09.7]} 17... Qb6 {[%clk 0:02:21.7]} 18. Nxe5 {[%clk
0:02:01.9]} 18... Nxe5 {[%clk 0:02:09.8]} 19. Bc3 {[%clk 0:02:00.8]} 19... Rb7
{[%clk 0:01:46.1]} 20. Re1 {[%clk 0:01:59.1]} 20... Nd7 {[%clk 0:01:33.1]} 21.
f4 {[%clk 0:01:51.2]} 21... f6 {[%clk 0:01:23.8]} 22. h4 {[%clk 0:01:34.7]}
22... Kf7 {[%clk 0:01:17.6]} 23. h5 {[%clk 0:01:33.9]} 23... Rbb8 {[%clk
0:01:08.7]} 24. Rh1 {[%clk 0:01:30.3]} 24... Rh8 {[%clk 0:01:05]} 25. Qd3 {[%clk
0:01:23.9]} 25... Qa6 {[%clk 0:00:57.5]} 26. Rf1 {[%clk 0:01:14.9]} 26... Rab8
{[%clk 0:00:50.6]} 27. e5 {[%clk 0:01:08.4]} 27... Nb6 {[%clk 0:00:46]} 28. e6+
{[%clk 0:00:52.8]} 28... Kg8 {[%clk 0:00:38]} 29. b3 {[%clk 0:00:38.3]} 29...
Qb7 {[%clk 0:00:33.2]} 30. Rd1 {[%clk 0:00:33.7]} 30... f5 {[%clk 0:00:32]} 31.
Bxg7 {[%clk 0:00:27.6]} 31... Kxg7 {[%clk 0:00:31.9]} 32. Qc3+ {[%clk
0:00:27.6]} 32... Kg8 {[%clk 0:00:30.3]} 33. h6 {[%clk 0:00:27.5]} 1-0